bitfinex/quotes_BTCUSD_20250408
["timestamp","ask_amount","ask_price","bid_price","bid_amount"]
[1744155757260,0.22067923,76466.0,76463.0,0.00207685]
[1744155757963,0.209247,76465.0,76463.0,0.00107685]
[1744155758253,0.209248,76465.0,76463.0,0.00107685]
[1744155758456,0.22067923,76466.0,76463.0,0.00107685]
[1744155758457,0.01143423,76466.0,76463.0,0.21032785]
[1744155758664,0.01143423,76466.0,76465.0,0.222323]
[1744155758863,0.16668,76479.0,76465.0,0.222323]
[1744155758864,0.34,76477.0,76471.0,0.222304]
[1744155759069,0.34,76477.0,76472.0,0.209225]
[1744155759274,0.34,76477.0,76471.0,0.013076]
[1744155759571,0.34,76477.0,76471.0,0.222303]
[1744155759771,0.549214,76477.0,76472.0,0.013076]
[1744155759967,0.34,76475.0,76471.0,0.222303]
[1744155760702,0.34,76475.0,76472.0,0.2223]
[1744155760879,0.34,76475.0,76472.0,0.013076]
[1744155761643,0.34,76478.0,76472.0,0.222301]
[1744155761842,0.005,76477.0,76473.0,0.013076]
[1744155762160,0.005,76477.0,76474.0,0.209219]
[1744155762478,0.35118333,76478.0,76472.0,0.2223]
[1744155762679,0.005,76475.0,76472.0,0.2223]
[1744155763076,0.57347033,76478.0,76472.0,0.2223]
[1744155763292,0.57347033,76478.0,76470.0,0.20923]
[1744155763293,0.226294,76475.0,76470.0,0.20923]
[1744155763493,0.222296,76475.0,76474.0,0.001]
[1744155763700,0.226296,76475.0,76474.0,0.001]
[1744155764061,0.222296,76475.0,76474.0,0.001]
[1744155764671,0.23346933,76478.0,76471.0,0.222304]
[1744155764868,0.23346933,76478.0,76473.0,0.013076]
[1744155765070,0.34,76475.0,76471.0,0.222304]
[1744155765522,0.34,76475.0,76472.0,0.209224]
[1744155765722,0.34,76475.0,76474.0,0.209221]
[1744155765870,0.34,76475.0,76474.0,0.210221]
[1744155766075,0.004,76475.0,76474.0,0.210221]
[1744155766284,0.01118333,76478.0,76475.0,0.209216]
[1744155766478,0.01118333,76478.0,76474.0,0.209221]
[1744155766479,0.004,76475.0,76474.0,0.013076]
[1744155766683,0.009,76475.0,76474.0,0.222297]
[1744155767309,0.005,76475.0,76474.0,0.222297]
[1744155767665,0.009,76475.0,76474.0,0.223297]
[1744155767879,0.004,76475.0,76474.0,0.223297]
[1744155768276,0.004,76475.0,76474.0,0.001]
[1744155768965,0.009,76475.0,76474.0,0.002]
[1744155769464,0.218218,76475.0,76474.0,0.002]
[1744155769666,0.231294,76475.0,76474.0,0.002]
[1744155770011,0.571294,76475.0,76474.0,0.002]
[1744155770230,0.69754945,76475.0,76474.0,0.002]
[1744155771697,0.571294,76475.0,76474.0,0.002]
[1744155771897,0.349,76475.0,76474.0,0.002]
[1744155773382,0.349,76475.0,76474.0,0.015076]
[1744155775354,0.349,76475.0,76474.0,0.002]
[1744155775726,0.362076,76475.0,76474.0,0.002]
[1744155776378,0.42154533,76475.0,76474.0,0.002]
[1744155777167,0.407476,76475.0,76474.0,0.002]
[1744155777344,0.362076,76475.0,76474.0,0.002]
[1744155778229,0.562326,76464.0,76463.0,7.685e-05]
[1744155779490,0.564326,76464.0,76463.0,7.685e-05]
[1744155779661,0.70712549,76464.0,76437.0,0.013082]
[1744155779867,0.34,76445.0,76439.0,0.00012597]
[1744155780063,0.34,76445.0,76441.0,0.22239]
[1744155780962,0.34,76446.0,76442.0,0.222387]
[1744155781401,0.34,76446.0,76441.0,0.22239]
[1744155781806,0.34,76446.0,76443.0,0.209306]
[1744155781998,0.34,76446.0,76442.0,0.222387]
[1744155781999,0.34,76455.0,76449.0,0.01308]
[1744155782444,0.34,76455.0,76452.0,0.222359]
[1744155782640,0.34,76455.0,76451.0,0.01308]
[1744155782862,0.34,76455.0,76454.0,0.222355]
[1744155783064,0.34,76463.0,76456.0,0.222347]
[1744155783267,0.34,76459.0,76452.0,0.209281]
[1744155783487,0.34,76455.0,76453.0,0.209277]
[1744155783860,0.01308,76452.0,76444.0,0.013081]
[1744155784058,0.209292,76449.0,76443.0,0.005]
[1744155784263,0.209292,76449.0,76444.0,0.044991]
[1744155784431,0.209284,76451.0,76444.0,0.267373]
[1744155784432,0.01308,76450.0,76444.0,0.267373]
[1744155784798,0.209289,76450.0,76444.0,0.267373]
[1744155784928,0.209284,76451.0,76446.0,0.222376]
[1744155785348,0.34,76458.0,76454.0,0.013079]
[1744155785704,0.34,76459.0,76456.0,0.013079]
[1744155785846,0.549262,76459.0,76455.0,0.209273]
[1744155786098,0.34,76459.0,76455.0,0.209273]
[1744155786294,0.34,76459.0,76457.0,0.209265]
[1744155786604,0.549248,76465.0,76458.0,0.013079]
[1744155786808,0.013078,76464.0,76458.0,0.013079]
[1744155787208,0.34,76467.0,76464.0,0.013078]
[1744155787412,0.549241,76467.0,76461.0,0.013078]
[1744155787621,0.209247,76465.0,76459.0,0.222338]
[1744155787809,0.34,76467.0,76462.0,0.209251]
[1744155788009,0.209242,76467.0,76462.0,0.222332]
[1744155788465,0.209242,76467.0,76462.0,0.22245797]
[1744155789443,0.003,76465.0,76462.0,0.22245797]
[1744155789659,0.212246,76465.0,76462.0,0.00012597]
[1744155789859,0.209246,76465.0,76462.0,0.00012597]
[1744155790070,0.34,76465.0,76462.0,0.00012597]
[1744155790228,0.549248,76465.0,76462.0,0.00012597]
[1744155790712,0.554248,76465.0,76462.0,0.00012597]
[1744155790860,0.03714133,76464.0,76462.0,0.00012597]
[1744155791061,0.34,76463.0,76462.0,0.00012597]
[1744155791629,0.34,76463.0,76462.0,0.22245797]
[1744155791986,0.005,76464.0,76463.0,0.013078]
[1744155792511,0.062074,76485.0,76471.0,0.013076]
[1744155792721,0.013074,76483.0,76476.0,0.013075]
[1744155792921,0.34,76479.0,76474.0,0.209215]
[1744155793132,0.013074,76484.0,76474.0,0.209215]
[1744155793133,0.222238,76494.0,76488.0,0.209181]
[1744155793334,0.209177,76490.0,76484.0,0.209194]
[1744155793818,0.209184,76488.0,76483.0,0.013074]
[1744155794014,0.34,76487.0,76482.0,0.209197]
[1744155794170,0.34,76487.0,76481.0,0.2092]
[1744155794171,0.562261,76487.0,76481.0,0.2092]
[1744155794377,0.549187,76487.0,76483.0,0.209196]
[1744155794577,0.209187,76487.0,76483.0,0.209196]
[1744155794782,0.209187,76487.0,76482.0,0.013074]
[1744155794997,0.009,76487.0,76483.0,0.22227]
[1744155795194,0.009,76487.0,76483.0,0.013074]
[1744155795826,0.34,76488.0,76483.0,0.013074]
[1744155795970,0.34,76488.0,76484.0,0.001]
[1744155796347,0.34,76488.0,76483.0,0.013074]
[1744155796532,0.34,76488.0,76484.0,0.222266]
[1744155796739,0.009,76487.0,76483.0,0.001]
[1744155796937,0.549185,76488.0,76482.0,0.013074]
[1744155797136,0.009,76487.0,76483.0,0.014074]
[1744155797807,0.009,76487.0,76483.0,0.223268]
[1744155798509,0.009,76487.0,76483.0,0.001]
[1744155798910,0.018,76487.0,76483.0,0.002]
[1744155799111,0.018,76487.0,76483.0,0.211194]
[1744155799312,0.018,76487.0,76483.0,0.224268]
[1744155800061,0.31518331,76490.0,76483.0,0.224268]
[1744155800461,0.209185,76488.0,76483.0,0.224268]
[1744155800843,0.209185,76488.0,76483.0,0.001]
[1744155801044,0.209185,76488.0,76483.0,0.013074]
[1744155801467,0.209185,76488.0,76483.0,0.222268]
[1744155801667,0.209185,76488.0,76483.0,0.223268]
[1744155802234,0.5360918,76490.0,76485.0,0.209191]
[1744155802483,0.53618501,76490.0,76485.0,0.209191]
[1744155803041,0.209183,76488.0,76484.0,0.013074]
[1744155803243,0.013074,76482.0,76472.0,0.013076]
[1744155803445,0.34,76478.0,76473.0,0.013076]
[1744155803786,0.34,76478.0,76474.0,0.209219]
[1744155803947,0.34,76478.0,76474.0,0.222295]
[1744155804422,0.34,76478.0,76473.0,0.222298]
[1744155804616,0.013077,76470.0,76461.0,0.013078]
[1744155804767,0.34,76476.0,76475.0,0.013076]
[1744155806102,0.209182,76489.0,76483.0,0.209195]
[1744155806303,0.34,76488.0,76483.0,0.209195]
[1744155806518,0.34,76488.0,76487.0,0.013074]
[1744155806696,0.34,76488.0,76487.0,0.222259]
[1744155807508,0.0118227,76490.0,76489.0,0.222253]
[1744155807854,0.0118227,76490.0,76489.0,0.28788629]
[1744155807988,0.0118227,76490.0,76489.0,0.39711164]
[1744155808186,9.321e-05,76490.0,76489.0,0.39711164]
[1744155809867,0.00209321,76490.0,76489.0,0.39711164]
[1744155810376,9.321e-05,76490.0,76489.0,0.39711164]
[1744155810598,0.01181687,76490.0,76489.0,0.39811164]
[1744155810746,0.54927021,76490.0,76489.0,0.001]
[1744155811095,0.34009321,76490.0,76489.0,0.001]
[1744155812852,0.35212211,76490.0,76489.0,0.001]
[1744155815999,0.34,76487.0,76475.0,0.013076]
[1744155816292,0.34,76487.0,76486.0,0.21444292]
[1744155816507,0.34,76487.0,76486.0,0.39151735]
[1744155817106,0.01312211,76490.0,76489.0,0.222253]
[1744155817728,0.34,76487.0,76480.0,0.013075]
[1744155818026,0.34,76485.0,76481.0,0.222275]
[1744155818593,0.34,76485.0,76484.0,0.013074]
[1744155818788,0.549185,76488.0,76482.0,0.013074]
[1744155818989,0.549185,76488.0,76483.0,0.209196]
[1744155819193,0.549185,76488.0,76484.0,0.222265]
[1744155819927,0.34,76489.0,76484.0,0.222265]
[1744155820147,0.549182,76489.0,76484.0,0.222265]
[1744155820471,0.34,76489.0,76484.0,0.222265]
[1744155820949,0.01212211,76490.0,76485.0,0.222262]
[1744155821124,0.01212211,76490.0,76488.0,0.013073]
[1744155821293,0.01212211,76490.0,76485.0,0.222262]
[1744155821494,0.34,76489.0,76485.0,0.222262]
[1744155821746,0.549182,76489.0,76485.0,0.209188]
[1744155822448,0.34,76489.0,76486.0,0.22226]
[1744155822797,0.34,76489.0,76486.0,0.013074]
[1744155822998,0.01212211,76490.0,76488.0,0.209181]
[1744155823352,0.01212211,76490.0,76489.0,0.013073]
[1744155824199,0.01312211,76490.0,76489.0,0.013073]
[1744155824654,0.01312211,76490.0,76488.0,0.209181]
[1744155825365,0.01212211,76490.0,76488.0,0.209181]
[1744155825570,0.01212211,76490.0,76488.0,0.222254]
[1744155825771,0.01312211,76490.0,76488.0,0.222254]
[1744155825937,0.01312211,76490.0,76489.0,0.013073]
[1744155826136,0.01212211,76490.0,76489.0,0.013073]
[1744155826541,0.01312211,76490.0,76489.0,0.013073]
[1744155826940,0.01212211,76490.0,76489.0,0.013073]
[1744155827141,0.01312211,76490.0,76489.0,0.013073]
[1744155830044,0.01312211,76490.0,76488.0,0.222254]
[1744155830812,0.22227,76484.0,76477.0,0.013075]
[1744155831115,0.209196,76484.0,76478.0,0.209208]
[1744155831337,0.209198,76483.0,76477.0,0.222286]
[1744155831741,0.209204,76481.0,76475.0,0.222292]
[1744155833250,0.013074,76483.0,76472.0,0.013076]
[1744155833251,0.209215,76477.0,76472.0,0.222302]
[1744155833447,0.20922,76475.0,76470.0,0.222307]
[1744155833814,0.209215,76477.0,76475.0,0.005]
[1744155834005,0.209215,76477.0,76471.0,0.209227]
[1744155834210,0.209215,76477.0,76458.0,0.013079]
[1744155834211,0.353077,76467.0,76458.0,0.013079]
[1744155834411,0.013078,76459.0,76448.0,0.0968]
[1744155834752,0.222376,76447.0,76438.0,0.222399]
[1744155835089,0.35610792,76450.0,76442.0,0.013081]
[1744155835375,0.35610792,76450.0,76445.0,0.013081]
[1744155835601,0.35616269,76450.0,76443.0,0.013081]
[1744155835876,0.35616269,76450.0,76446.0,0.222376]
[1744155836073,5.477e-05,76450.0,76447.0,0.222373]
[1744155836301,5.477e-05,76450.0,76449.0,0.01308]
[1744155836701,0.01449795,76450.0,76449.0,0.01308]
[1744155836842,5.477e-05,76450.0,76449.0,0.01308]
[1744155837039,5.477e-05,76450.0,76449.0,0.13933864]
[1744155837445,0.01480756,76450.0,76449.0,0.01308]
[1744155837696,5.477e-05,76450.0,76449.0,0.01308]
[1744155837870,5.477e-05,76450.0,76449.0,0.01608]
[1744155838097,5.477e-05,76450.0,76449.0,0.14495463]
[1744155839453,5.477e-05,76450.0,76449.0,0.14333864]
[1744155839951,5.477e-05,76450.0,76449.0,0.14733864]
[1744155840168,5.477e-05,76450.0,76449.0,0.14333864]
[1744155840373,5.477e-05,76450.0,76449.0,0.14595452]
[1744155840531,5.477e-05,76450.0,76449.0,0.14895452]
[1744155841344,5.477e-05,76450.0,76449.0,0.14233864]
[1744155841972,5.477e-05,76450.0,76449.0,0.13933864]
[1744155842474,5.477e-05,76450.0,76449.0,0.14333864]
[1744155842704,5.477e-05,76450.0,76449.0,0.14733864]
[1744155842911,5.477e-05,76450.0,76449.0,0.14333864]
[1744155843115,5.477e-05,76450.0,76449.0,0.14595452]
[1744155843248,5.477e-05,76450.0,76449.0,0.14733864]
[1744155843451,5.477e-05,76450.0,76449.0,0.02108]
[1744155843671,5.477e-05,76450.0,76449.0,0.14733864]
[1744155844436,5.477e-05,76450.0,76449.0,0.14333864]
[1744155844993,5.477e-05,76450.0,76449.0,0.13933864]
[1744155845887,5.477e-05,76450.0,76449.0,0.14533864]
[1744155846289,5.477e-05,76450.0,76449.0,0.14495453]
[1744155846494,5.477e-05,76450.0,76449.0,0.14233864]
[1744155846819,5.477e-05,76450.0,76449.0,0.14533864]
[1744155846961,5.477e-05,76450.0,76449.0,0.14233864]
[1744155847397,5.477e-05,76450.0,76449.0,0.14633864]
[1744155847614,5.477e-05,76450.0,76449.0,0.14233864]
[1744155848495,5.477e-05,76450.0,76449.0,0.13933864]
[1744155848913,5.477e-05,76450.0,76449.0,0.14233864]
[1744155849099,5.477e-05,76450.0,76449.0,0.14733864]
[1744155849313,5.477e-05,76450.0,76449.0,0.02108]
[1744155849513,5.477e-05,76450.0,76449.0,0.01808]
[1744155849711,5.477e-05,76450.0,76449.0,0.02308]
[1744155850435,5.477e-05,76450.0,76449.0,0.01]
[1744155850612,5.477e-05,76450.0,76449.0,0.232369]
[1744155850812,5.477e-05,76450.0,76449.0,0.36124359]
[1744155851011,5.477e-05,76450.0,76449.0,0.35862764]
[1744155851181,5.477e-05,76450.0,76449.0,0.01]
[1744155851382,5.477e-05,76450.0,76428.0,0.013084]
[1744155851383,0.013082,76439.0,76428.0,0.013084]
[1744155851586,0.209336,76432.0,76425.0,0.222437]
[1744155851840,0.209336,76432.0,76422.0,0.222446]
[1744155851841,0.222419,76432.0,76422.0,0.222446]
[1744155852009,0.013083,76432.0,76418.0,0.013085]
[1744155852211,0.56544392,76432.0,76426.0,0.013084]
[1744155852435,0.209342,76430.0,76424.0,0.209358]
[1744155852639,0.209342,76430.0,76428.0,0.008]
[1744155852796,0.209342,76430.0,76424.0,0.222442]
[1744155853000,0.56544392,76432.0,76421.0,0.222449]
[1744155853001,0.209346,76429.0,76421.0,0.222449]
[1744155853199,0.209355,76426.0,76419.0,0.013085]
[1744155853398,0.20936,76424.0,76418.0,0.227457]
[1744155853598,0.20935,76427.0,76419.0,0.222454]
[1744155853800,0.013084,76429.0,76418.0,0.005]
[1744155854401,0.56248275,76429.0,76428.0,0.001]
[1744155854596,0.209397,76410.0,76403.0,0.013088]
[1744155854853,0.209402,76408.0,76401.0,0.013088]
[1744155855051,0.209397,76410.0,76403.0,0.013088]
[1744155855294,0.34,76412.0,76405.0,0.013088]
[1744155855639,0.01207357,76411.0,76406.0,0.013087]
[1744155855840,0.01207357,76411.0,76410.0,0.013087]
[1744155856708,0.01478444,76412.0,76411.0,0.22248]
[1744155857137,0.35610792,76420.0,76418.0,0.013085]
[1744155857410,0.69610792,76420.0,76419.0,0.209372]
[1744155857607,0.70817375,76420.0,76415.0,0.013086]
[1744155858306,0.01458002,76420.0,76419.0,0.013085]
[1744155858662,0.34,76428.0,76427.0,0.222434]
[1744155858863,0.34,76428.0,76425.0,0.222437]
[1744155859113,0.34,76428.0,76427.0,0.222434]
[1744155859334,5.475e-05,76429.0,76428.0,0.013084]
[1744155859572,5.475e-05,76429.0,76428.0,0.13934264]
[1744155861357,5.475e-05,76429.0,76428.0,0.013084]
[1744155861984,0.00105475,76429.0,76428.0,0.013084]
[1744155862391,0.00205475,76429.0,76428.0,0.013084]
[1744155862826,0.00105475,76429.0,76428.0,0.013084]
[1744155863679,5.475e-05,76429.0,76428.0,0.013084]
[1744155863876,5.475e-05,76429.0,76428.0,0.014084]
[1744155865178,0.00105475,76429.0,76428.0,0.013084]
[1744155865644,0.00205475,76429.0,76428.0,0.013084]
[1744155865794,0.01210475,76434.0,76433.0,0.013083]
[1744155865993,0.34,76439.0,76438.0,0.222401]
[1744155866199,0.34,76434.0,76433.0,0.00012597]
[1744155866927,0.353083,76434.0,76433.0,0.00012597]
[1744155867363,0.34,76434.0,76433.0,0.00012597]
[1744155867710,0.35209953,76434.0,76433.0,0.00012597]
[1744155867917,0.35609953,76434.0,76433.0,0.00012597]
[1744155868546,0.35209953,76434.0,76433.0,0.00012597]
[1744155869122,0.01209953,76434.0,76433.0,0.00012597]
[1744155869727,0.01209953,76434.0,76433.0,0.22254197]
[1744155870263,0.35438267,76439.0,76434.0,0.222411]
[1744155870466,0.35438267,76439.0,76438.0,0.222401]
[1744155870642,0.34,76437.0,76433.0,0.22253697]
[1744155871335,0.34,76437.0,76435.0,0.222408]
[1744155871542,0.34,76437.0,76434.0,0.209329]
[1744155871945,0.0150463,76439.0,76434.0,0.209329]
[1744155872267,0.209317,76439.0,76434.0,0.209329]
[1744155872654,0.209317,76439.0,76433.0,0.01320897]
[1744155872655,0.549309,76442.0,76437.0,0.20932]
[1744155872828,0.34,76442.0,76439.0,0.209314]
[1744155873174,0.549308,76443.0,76438.0,0.222399]
[1744155873383,0.35610792,76450.0,76438.0,0.222399]
[1744155873384,0.35610792,76450.0,76440.0,0.013082]
[1744155873672,0.005,76474.0,76435.0,0.209327]
[1744155873673,0.40110792,76460.0,76454.0,0.222352]
[1744155873971,0.34,76456.0,76451.0,0.222364]
[1744155874333,0.549272,76456.0,76448.0,0.222371]
[1744155874673,0.34,76452.0,76448.0,0.01308]
[1744155875015,0.35431538,76452.0,76448.0,0.01308]
[1744155875218,0.35431538,76452.0,76447.0,0.209294]
[1744155876056,0.35431538,76452.0,76438.0,0.222399]
[1744155876057,0.34,76442.0,76438.0,0.222399]
[1744155876258,0.34,76442.0,76439.0,0.013082]
[1744155876458,0.34,76442.0,76435.0,0.209326]
[1744155876692,0.34,76442.0,76435.0,0.222409]
[1744155876953,0.34,76442.0,76437.0,0.222404]
[1744155877277,0.209325,76436.0,76433.0,0.00012597]
[1744155877476,0.34,76434.0,76433.0,0.00012597]
[1744155877728,0.353083,76434.0,76433.0,0.00012597]
[1744155878975,0.47934164,76434.0,76433.0,0.00012597]
[1744155879389,0.49388249,76434.0,76433.0,0.00012597]
[1744155879814,0.53888249,76434.0,76433.0,0.00012597]
[1744155880503,0.54875675,76434.0,76433.0,9.7e-07]
[1744155880644,0.59865675,76434.0,76433.0,9.7e-07]
[1744155880970,0.7249122,76434.0,76433.0,9.7e-07]
[1744155881174,0.77128325,76434.0,76433.0,9.7e-07]
[1744155881601,0.76528325,76434.0,76433.0,9.7e-07]
[1744155881944,0.78441232,76434.0,76433.0,0.00100097]
[1744155882179,0.44441232,76434.0,76433.0,0.00100097]
[1744155882388,0.40404127,76434.0,76433.0,0.00100097]
[1744155882537,0.40904127,76434.0,76398.0,0.222516]
[1744155882738,0.40904127,76434.0,76403.0,0.00042039]
[1744155882739,0.222489,76409.0,76403.0,0.00042039]
[1744155882942,0.01212907,76408.0,76404.0,0.209413]
[1744155883749,0.01212907,76407.0,76404.0,0.209413]
[1744155884023,0.01212907,76407.0,76403.0,0.00042039]
[1744155884268,0.222501,76404.0,76403.0,0.00042039]
[1744155884587,0.39769432,76404.0,76403.0,0.00042039]
[1744155884805,0.57839517,76404.0,76403.0,0.00042039]
[1744155885006,0.41223517,76404.0,76403.0,0.00042039]
[1744155885206,0.91843517,76404.0,76403.0,0.00042039]
[1744155885747,0.57704985,76401.0,76400.0,0.01048692]
[1744155885902,0.209487,76377.0,76368.0,0.209511]
[1744155886089,0.209487,76377.0,76370.0,7.684e-05]
[1744155886287,0.013093,76371.0,76370.0,7.684e-05]
[1744155886491,0.013093,76374.0,76370.0,7.684e-05]
[1744155886492,0.209501,76372.0,76370.0,7.684e-05]
[1744155887284,0.01212907,76371.0,76370.0,7.684e-05]
[1744155887853,0.01212907,76371.0,76370.0,0.00307684]
[1744155888049,0.22163207,76371.0,76370.0,0.00307684]
[1744155888291,0.01212907,76371.0,76370.0,0.00307684]
[1744155888449,0.01212907,76371.0,76370.0,7.684e-05]
[1744155888982,0.01212907,76371.0,76370.0,0.00407684]
[1744155889182,0.02698822,76371.0,76370.0,0.06210042]
[1744155889487,0.209473,76382.0,76375.0,0.013093]
[1744155889687,0.209455,76389.0,76382.0,0.209473]
[1744155889887,0.20946,76387.0,76382.0,0.209473]
[1744155890030,0.3901637,76385.0,76379.0,0.209479]
[1744155890429,0.1806977,76385.0,76379.0,0.209479]
[1744155890673,0.1806977,76385.0,76380.0,0.0576073]
[1744155891052,0.1806977,76385.0,76384.0,0.222558]
[1744155891386,0.1806977,76385.0,76382.0,0.209473]
[1744155891529,0.1816977,76385.0,76381.0,0.013092]
[1744155891746,0.1826977,76385.0,76381.0,0.013092]
[1744155891957,0.1816977,76385.0,76381.0,0.013092]
[1744155892155,0.209467,76384.0,76377.0,0.209484]
[1744155892473,0.1846977,76385.0,76381.0,0.013092]
[1744155892673,0.1836977,76385.0,76382.0,0.209473]
[1744155892873,0.1846977,76385.0,76381.0,0.222565]
[1744155893111,0.1876977,76385.0,76381.0,0.013092]
[1744155893318,0.13934964,76384.0,76369.0,0.222602]
[1744155893463,0.35610792,76380.0,76373.0,0.209498]
[1744155893811,0.209478,76381.0,76373.0,0.222591]
[1744155893955,0.209481,76380.0,76371.0,0.013093]
[1744155894158,0.209486,76378.0,76371.0,0.013093]
[1744155894381,0.209492,76376.0,76371.0,0.013093]
[1744155894635,0.209492,76376.0,76373.0,0.002]
[1744155894820,0.209495,76375.0,76373.0,0.002]
[1744155895234,0.13935164,76374.0,76373.0,0.002]
[1744155895807,0.013093,76372.0,76371.0,0.003]
[1744155896069,0.013093,76372.0,76371.0,0.006]
[1744155896429,0.013093,76372.0,76371.0,0.003]
[1744155896627,0.209503,76371.0,76370.0,7.684e-05]
[1744155897612,0.209503,76371.0,76370.0,0.00307684]
[1744155898310,0.209495,76375.0,76370.0,0.00307684]
[1744155898512,0.2095,76373.0,76370.0,0.00707684]
[1744155898696,0.209478,76381.0,76375.0,0.222584]
[1744155898900,0.209481,76379.0,76370.0,0.00707684]
[1744155899152,0.0144977,76385.0,76374.0,0.013093]
[1744155899312,0.0144977,76385.0,76373.0,0.013093]
[1744155899313,0.209483,76379.0,76373.0,0.013093]
[1744155899513,0.209484,76379.0,76373.0,0.222588]
[1744155899813,0.35610792,76383.0,76375.0,0.013093]
[1744155900019,0.209467,76384.0,76378.0,0.013092]
[1744155900355,0.209475,76382.0,76376.0,0.013093]
[1744155900566,0.209475,76382.0,76375.0,0.222583]
[1744155900567,0.209492,76376.0,76374.0,0.002]
[1744155900769,0.15389249,76375.0,76374.0,0.002]
[1744155901078,0.222588,76374.0,76370.0,7.684e-05]
[1744155901323,0.20949,76376.0,76371.0,0.209503]
[1744155901573,0.209495,76374.0,76370.0,7.684e-05]
[1744155902234,0.209489,76377.0,76370.0,7.684e-05]
[1744155902414,0.209491,76376.0,76370.0,0.22567484]
[1744155902564,0.209491,76376.0,76371.0,0.013093]
[1744155902771,0.209496,76374.0,76370.0,0.00307684]
[1744155902989,0.209487,76377.0,76370.0,0.22867484]
[1744155903168,0.01454085,76382.0,76376.0,0.209489]
[1744155903375,0.12625864,76381.0,76375.0,0.222583]
[1744155903875,0.209481,76380.0,76374.0,0.222585]
[1744155904212,0.209484,76378.0,76374.0,0.209492]
[1744155904355,0.01452965,76385.0,76383.0,0.209469]
[1744155904555,0.013092,76381.0,76370.0,0.00607684]
[1744155904776,0.2095,76373.0,76370.0,0.00607684]
[1744155904981,0.209502,76372.0,76370.0,0.00307684]
[1744155905198,0.12625864,76380.0,76374.0,0.001]
[1744155905429,0.209486,76378.0,76374.0,0.001]
[1744155905642,0.013092,76382.0,76374.0,0.001]
[1744155905643,0.22388145,76385.0,76376.0,0.013093]
[1744155905857,0.01441645,76385.0,76384.0,0.222558]
[1744155906033,0.013087,76409.0,76381.0,0.013092]
[1744155906034,0.0590536,76414.0,76403.0,0.209414]
[1744155906189,0.013087,76409.0,76399.0,0.013089]
[1744155906391,0.013089,76397.0,76383.0,0.222559]
[1744155906619,0.209426,76399.0,76390.0,0.01309]
[1744155907090,0.209432,76397.0,76388.0,0.013091]
[1744155907290,0.013089,76397.0,76386.0,0.013091]
[1744155907494,0.209459,76387.0,76386.0,7.684e-05]
[1744155908121,0.20945,76391.0,76386.0,7.684e-05]
[1744155908296,0.16628,76398.0,76389.0,0.01309]
[1744155908516,0.16628,76398.0,76397.0,0.222521]
[1744155908716,0.209432,76397.0,76391.0,0.01309]
[1744155908890,0.209432,76397.0,76392.0,0.222536]
[1744155909089,0.209433,76397.0,76390.0,0.01409]
[1744155909328,0.209426,76399.0,76393.0,0.01309]
[1744155909539,0.51435893,76405.0,76402.0,0.222504]
[1744155909764,0.51435893,76405.0,76404.0,0.013088]
[1744155909960,0.01435893,76405.0,76401.0,0.013088]
[1744155910192,0.01435893,76405.0,76402.0,0.013088]
[1744155910385,0.56547692,76420.0,76407.0,0.209404]
[1744155910608,0.209374,76418.0,76412.0,0.20939]
[1744155910787,0.209381,76416.0,76409.0,0.209398]
[1744155910947,0.222459,76418.0,76402.0,0.222504]
[1744155910948,0.209402,76409.0,76402.0,0.222504]
[1744155911158,0.209396,76411.0,76404.0,0.222498]
[1744155911384,0.209396,76411.0,76405.0,0.013088]
[1744155911788,0.209396,76411.0,76405.0,7.684e-05]
[1744155911789,0.209402,76408.0,76405.0,7.684e-05]
[1744155912005,0.209405,76407.0,76405.0,7.684e-05]
[1744155912205,0.22382903,76407.0,76405.0,7.684e-05]
[1744155912777,0.22382903,76407.0,76405.0,0.00107684]
[1744155912964,0.22382903,76407.0,76405.0,7.684e-05]
[1744155913367,0.5,76429.0,76427.0,0.209348]
[1744155913579,0.209366,76422.0,76413.0,0.013086]
[1744155913883,0.209366,76422.0,76414.0,0.013086]
[1744155914473,0.209366,76421.0,76414.0,0.013086]
[1744155914665,0.209366,76422.0,76416.0,0.013086]
[1744155915025,0.209382,76416.0,76409.0,0.013087]
[1744155915217,0.209382,76416.0,76410.0,0.013087]
[1744155915449,0.209377,76418.0,76412.0,0.209389]
[1744155915669,0.33762164,76422.0,76421.0,0.222451]
[1744155915670,0.002,76422.0,76421.0,0.222451]
[1744155915963,0.52222792,76430.0,76415.0,0.013086]
[1744155915964,0.209363,76423.0,76415.0,0.013086]
[1744155916144,0.347,76422.0,76415.0,0.013086]
[1744155916465,0.345,76422.0,76416.0,0.222463]
[1744155916658,0.34,76422.0,76416.0,0.222463]
[1744155916962,0.35654085,76422.0,76421.0,0.001]
[1744155917170,0.002,76422.0,76421.0,0.001]
[1744155917348,0.002,76422.0,76421.0,0.014085]
[1744155917526,0.002,76422.0,76421.0,0.03774]
[1744155917988,0.34,76423.0,76422.0,0.222448]
[1744155918320,0.34,76428.0,76422.0,0.222448]
[1744155918524,0.222446,76423.0,76415.0,0.222466]
[1744155918717,0.013085,76419.0,76407.0,0.013087]
[1744155918942,0.013086,76416.0,76407.0,0.013087]
[1744155919116,0.013086,76416.0,76405.0,0.20948684]
[1744155919117,0.209393,76412.0,76405.0,7.684e-05]
[1744155919470,0.209384,76415.0,76406.0,0.02356678]
[1744155919679,0.209387,76414.0,76406.0,0.222494]
[1744155919879,0.209387,76414.0,76407.0,0.222489]
[1744155920180,0.209387,76414.0,76408.0,0.222486]
[1744155920352,0.35610792,76420.0,76415.0,0.209382]
[1744155920556,0.34,76419.0,76415.0,0.013086]
[1744155920754,0.34,76419.0,76414.0,0.013086]
[1744155920755,0.209407,76406.0,76395.0,0.013089]
[1744155920920,0.209401,76409.0,76401.0,0.013088]
[1744155921120,0.209407,76406.0,76395.0,0.013089]
[1744155921346,0.209407,76406.0,76399.0,0.013089]
[1744155922097,0.209407,76406.0,76401.0,0.209419]